fUST/lending_fUST_20251215
["ID","MTS","AMOUNT","RATE_DAILY","PERIOD"]
[398508595,1765765845308,-500.0,0.0001819,5]
[398508596,1765765845317,-500.0,0.0001819,2]
[398508597,1765765845326,-180.81652166,0.00018219,2]
[398508598,1765765845335,-150.0,0.00018295,2]
[398508599,1765765845344,-198.08824625,0.000183,3]
[398508600,1765765845353,-150.0,0.00018356,2]
[398508601,1765765845362,-300.0,0.00018356,2]
[398508602,1765765845371,-450.0,0.00018356,2]
[398508603,1765765845380,-600.0,0.00018356,2]
[398508604,1765765845393,-750.0,0.00018356,2]
[398508605,1765765845402,-826.91340381,0.00018356,2]
[398508606,1765765845411,-500.0,0.0001839,5]
[398508607,1765765845420,-415.0,0.000184,2]
[398508608,1765765845431,-249.779576,0.00018493,2]
[398508609,1765765845441,-344.51,0.000185,2]
[398508610,1765765845450,-767.7842514,0.00018543,2]
[398508611,1765765845459,-500.0,0.00018551,2]
[398508612,1765765845472,-504.40373135,0.0001859,2]
[398508613,1765765845481,-2500.0,0.0001863,2]
[398508614,1765765845490,-5000.0,0.0001863,2]
[398508615,1765765845500,-560.0,0.00018645,2]
[398508616,1765765845509,-38000.0,0.00018792,3]
[398508617,1765765845518,-449.025282,0.000188,2]
[398508618,1765765845528,-449.025282,0.000188,2]
[398508619,1765765845538,-449.025282,0.000188,2]
[398508620,1765765845548,-449.025282,0.000188,2]
[398508621,1765765845558,-151.0,0.000188,2]
[398508622,1765765845567,-151.0,0.000188,2]
[398508624,1765765845576,-151.0,0.000188,2]
[398508626,1765765845585,-672.35382,0.000188,2]
[398508627,1765765845594,-672.35382,0.000188,2]
[398508629,1765765845603,-672.35382,0.000188,2]
[398508630,1765765845613,-672.35382,0.000188,2]
[398508632,1765765845622,-38000.0,0.000188,3]
[398508634,1765765845631,-38000.0,0.00018809,3]
[398508635,1765765845640,-38000.0,0.00018818,3]
[398508636,1765765845649,-168.52622646,0.00018825,3]
[398508637,1765765845657,-38000.0,0.00018827,3]
[398508638,1765765845666,-38000.0,0.00018834,3]
[398508639,1765765845683,-38000.0,0.00018836,3]
[398508640,1765765845695,-449.025282,0.00018836,2]
[398508642,1765765845705,-449.025282,0.00018836,2]
[398508643,1765765845714,-449.025282,0.00018836,2]
[398508644,1765765845723,-449.025274,0.00018836,2]
[398508645,1765765845732,-151.0,0.00018836,2]
[398508646,1765765845741,-151.0,0.00018836,2]
[398508647,1765765845751,-151.0,0.00018836,2]
[398508648,1765765845761,-672.35382,0.00018836,2]
[398508649,1765765845770,-672.35382,0.00018836,2]
[398508650,1765765845779,-672.35382,0.00018836,2]
[398508651,1765765845789,-672.353818,0.00018836,2]
[398508652,1765765845798,-338.134039,0.00018842,2]
[398508653,1765765845810,-338.134039,0.00018842,2]
[398508654,1765765845819,-338.134039,0.00018842,2]
[398508655,1765765845828,-338.134039,0.00018842,2]
[398508656,1765765845837,-38000.0,0.00018842,3]
[398508657,1765765845847,-38000.0,0.00018844,3]
[398508658,1765765845856,-38000.0,0.00018851,3]
[398508659,1765765845865,-38000.0,0.00018853,3]
[398508660,1765765845875,-38000.0,0.0001886,3]
[398508661,1765765845884,-38000.0,0.00018862,3]
[398508662,1765765845894,-38000.0,0.00018869,3]
[398508663,1765765845903,-38000.0,0.00018878,3]
[398508664,1765765845912,-475.3950842,0.0001888,2]
[398508665,1765765845921,-338.134039,0.00018886,2]
[398508666,1765765845930,-338.134039,0.00018886,2]
[398508667,1765765845940,-338.134039,0.00018886,2]
[398508668,1765765845949,-338.13404,0.00018886,2]
[398508669,1765765845959,-38000.0,0.00018886,3]
[398508670,1765765845968,-38000.0,0.00018895,3]
[398508671,1765765845978,-302.8183302,0.000189,2]
[398508672,1765765845987,-302.8788636,0.000189,2]
[398508673,1765765845996,-38000.0,0.00018904,3]
[398508674,1765765846006,-1000.0,0.00018938,6]
[398508675,1765765846015,-733.3278298,0.00018997,2]
[398508676,1765765846024,-47071.0,0.00019,2]
[398508677,1765765846033,-70000.0,0.00019,2]
[398508678,1765765846043,-2006.19549976,0.00019,10]
[398508679,1765765846052,-51806.05222701,0.00019,2]
[398508680,1765765846061,-10589.0,0.00019,2]
[398508681,1765765846070,-198.08824625,0.00019,30]
[398508682,1765765846079,-153.39623102,0.00019,2]
[398508683,1765765846089,-313.60403607,0.00019,2]
[398508684,1765765846098,-360.36278941,0.00019,2]
[398508685,1765765846107,-180.18139468,0.00019,2]
[398508686,1765765846117,-333.33333333,0.00019,2]
[398508687,1765765846126,-165.68905798,0.00019,2]
[398508688,1765765846135,-154.37088339,0.00019,2]
[398508689,1765765846145,-333.33333333,0.00019,2]
[398508690,1765765846154,-411.0,0.00019022,5]
[398508691,1765765846163,-513.0,0.00019022,5]
[398508692,1765765846173,-302.8788636,0.00019089,2]
[398508693,1765765846182,-796.19226871,0.00019091,2]
[398508694,1765765846196,-500.0,0.00019099,2]
[398508695,1765765846205,-995.3861952,0.00019174,2]
[398508696,1765765846215,-1299.1275072,0.00019174,2]
[398508697,1765765846224,-500.0,0.00019178,2]
[398508698,1765765846234,-500.0,0.00019178,2]
[398508699,1765765846244,-500.0,0.00019178,2]
[398508700,1765765846254,-500.0,0.00019178,2]
[398508701,1765765846264,-500.0,0.00019178,2]
[398508702,1765765846273,-500.0,0.00019178,2]
[398508703,1765765846284,-548.88988308,0.00019178,2]
[398508704,1765765846293,-222.946873,0.00019178,2]
[398508705,1765765846304,-222.946873,0.00019178,2]
[398508706,1765765846314,-222.946873,0.00019178,2]
[398508707,1765765846324,-222.946873,0.00019178,2]
[398508708,1765765846334,-222.946873,0.00019178,2]
[398508709,1765765846344,-222.946873,0.00019178,2]
[398508710,1765765846354,-222.946873,0.00019178,2]
[398508711,1765765846364,-222.946873,0.00019178,2]
[398508712,1765765846374,-222.946873,0.00019178,2]
[398508713,1765765846385,-222.946873,0.00019178,2]
[398508714,1765765846396,-222.946873,0.00019178,2]
[398508715,1765765846406,-222.946873,0.00019178,2]
[398508716,1765765846416,-222.946873,0.00019178,2]
[398508717,1765765846427,-222.946873,0.00019178,2]
[398508718,1765765846437,-222.946873,0.00019178,2]
[398508719,1765765846446,-222.946873,0.00019178,2]
[398508720,1765765846456,-222.946873,0.00019178,2]
[398508721,1765765846466,-222.946873,0.00019178,2]
[398508722,1765765846475,-222.946873,0.00019178,2]
[398508723,1765765846485,-222.946871,0.00019178,2]
[398508724,1765765846494,-440.147545,0.00019178,2]
[398508725,1765765846504,-440.147545,0.00019178,2]
[398508726,1765765846513,-440.147545,0.00019178,2]
[398508727,1765765846522,-440.147545,0.00019178,2]
[398508728,1765765846536,-440.147545,0.00019178,2]
[398508729,1765765846546,-440.147545,0.00019178,2]
[398508730,1765765846555,-440.147545,0.00019178,2]
[398508731,1765765846564,-440.147545,0.00019178,2]
[398508732,1765765846573,-440.147545,0.00019178,2]
[398508733,1765765846583,-440.147545,0.00019178,2]
[398508734,1765765846592,-440.147545,0.00019178,2]
[398508735,1765765846602,-440.147545,0.00019178,2]
[398508736,1765765846611,-440.147545,0.00019178,2]
[398508737,1765765846621,-440.147545,0.00019178,2]
[398508738,1765765846630,-440.147545,0.00019178,2]
[398508739,1765765846639,-440.147545,0.00019178,2]
[398508740,1765765846648,-440.147545,0.00019178,2]
[398508741,1765765846658,-440.147545,0.00019178,2]
[398508742,1765765846667,-440.147545,0.00019178,2]
[398508743,1765765846676,-440.14754,0.00019178,2]
[398508744,1765765846685,-2439.91999384,0.00019178,2]
[398508745,1765765846694,-3700.27337471,0.00019178,2]
[398508746,1765765846704,-150.0,0.00019178,2]
[398508747,1765765846714,-660.0,0.00019193,2]
[398508748,1765765846724,-411.41,0.000192,2]
[398508749,1765765846734,-26347.86,0.000192,2]
[398508750,1765765846743,-3111.33491538,0.00019205,5]
[398508751,1765765846753,-1000.0,0.00019232,10]
[398508752,1765765846762,-302.8788636,0.00019278,2]
[398508753,1765765846771,-300.0,0.00019315,2]
[398508754,1765765846780,-450.0,0.00019452,2]
[398508755,1765765846789,-302.8788636,0.00019467,2]
[398508756,1765765846799,-1152.0,0.00019513,2]
[398508757,1765765846809,-422.17076411,0.0001952,2]
[398508758,1765765846819,-179.2524297,0.00019532,2]
[398508759,1765765846829,-333.33333333,0.00019551,9]
[398508760,1765765846840,-360.36278941,0.00019556,9]
[398508761,1765765846852,-600.0,0.00019589,2]
[398508762,1765765846861,-825.65138265,0.00019639,2]
[398508763,1765765846873,-500.0,0.00019647,2]
[398508764,1765765846883,-302.8788636,0.00019656,2]
[398508765,1765765846892,-163.6275561,0.00019713,2]
[398508766,1765765846901,-702.62243133,0.00019726,2]
[398508767,1765765846911,-187.3748753,0.00019726,2]
[398508768,1765765846921,-760.0,0.00019741,2]
[398508769,1765765846930,-1174.357774,0.0001976,5]
[398508770,1765765846940,-1000.0,0.0001978,5]
[398508771,1765765846949,-502.0,0.000198,10]
[398508772,1765765846959,-1000.0,0.000198,5]
[398508773,1765765846968,-1000.0,0.0001982,5]
[398508774,1765765846978,-1000.0,0.0001984,5]
[398508775,1765765846987,-302.5156628,0.00019845,4]
[398508776,1765765846997,-1000.0,0.0001986,5]
[398508777,1765765847007,-30180.0,0.0001987,2]
[398508778,1765765847016,-1000.0,0.0001988,5]
[398508779,1765765847026,-1000.0,0.000199,5]
[398508780,1765765847036,-1000.0,0.0001992,5]
[398508781,1765765847045,-222.1006811,0.0001993,2]
[398508782,1765765847055,-289.8745287,0.0001993,2]
[398508783,1765765847063,-1000.0,0.0001994,5]
[398508784,1765765847073,-6594.28028463,0.00019945,2]
[398508785,1765765847082,-1000.0,0.0001996,5]
[398508786,1765765847091,-1000.0,0.0001998,5]
[398508787,1765765847100,-2000.0,0.0002,7]
[398508788,1765765847109,-2000.0,0.0002,7]
[398508789,1765765847119,-2000.0,0.0002,7]
[398508790,1765765847128,-2000.0,0.0002,7]
[398508791,1765765847137,-2000.0,0.0002,7]
[398508792,1765765847146,-2000.0,0.0002,7]
[398508793,1765765847155,-2000.0,0.0002,7]
[398508794,1765765847164,-2000.0,0.0002,7]
[398508795,1765765847173,-2000.0,0.0002,7]
[398508796,1765765847183,-3000.0,0.0002,2]
[398508797,1765765847192,-3447.17817843,0.0002,2]
[398508798,1765765847201,-249.0,0.0002,2]
[398508799,1765765847210,-4313.5451419,0.0002,20]
[398508800,1765765847219,-1667.33704595,0.0002,2]
[398508801,1765765847228,-14649.44817926,0.0002,2]
[398508802,1765765847238,-370.30824669,0.0002,2]
[398508803,1765765847247,-23000.0,0.0002,2]
[398508804,1765765847257,-201.99328742,0.0002,2]
[398508805,1765765847267,-502.58108912,0.0002,2]
[398508806,1765765847276,-200.31901035,0.0002,2]
[398508807,1765765847286,-918.53380637,0.0002,120]
[398508808,1765765847295,-159.49297987,0.0002,2]
[398508809,1765765847305,-19400.0,0.0002,2]
[398508810,1765765847315,-96352.84973777,0.0002,2]
[398508811,1765765847325,-1462.75386556,0.0002,2]
[398508812,1765765847334,-1087.0,0.0002,2]
[398508813,1765765847343,-500.0,0.0002,2]
[398508814,1765765847353,-1094.0,0.0002,2]
[398508815,1765765847363,-300.0,0.0002,2]
[398508816,1765765847372,-221.055382,0.0002,5]
[398508817,1765765847385,-1000.0,0.0002,5]
[398508818,1765765847394,-250.0,0.0002,10]
[398508819,1765765847404,-150.0,0.0002,2]
[398508820,1765765847413,-151.4394318,0.0002,2]
[398508821,1765765847424,-2000.0,0.0002,7]
[398508822,1765765847433,-2000.0,0.0002,7]
[398508823,1765765847443,-2000.0,0.0002,7]
[398508824,1765765847453,-2000.0,0.0002,7]
[398508825,1765765847463,-2000.0,0.0002,7]
[398508826,1765765847472,-2000.0,0.0002,7]
[398508827,1765765847481,-2000.0,0.0002,7]
[398508828,1765765847490,-1399.90368431,0.0002,7]
[398508829,1765765847499,-20786.0,0.0002,30]
[398508830,1765765847508,-165.68905798,0.00020093,17]
[398508831,1765765847517,-250.0,0.000201,10]
[398508832,1765765847526,-333.33333333,0.00020102,17]
[398508833,1765765847535,-313.60403607,0.00020111,17]
[398508835,1765765847552,-360.36278941,0.00020111,17]
[398508837,1765765847562,-308.59776838,0.0002013,2]
[398508838,1765765847572,-1076.56377628,0.00020154,2]
[398508839,1765765847581,-900.46698,0.00020187,2]
[398508840,1765765847590,-500.0,0.00020195,2]
[398508841,1765765847599,-250.0,0.000202,10]
[398508842,1765765847609,-860.0,0.00020289,2]
[398508843,1765765847619,-250.0,0.000203,10]
[398508844,1765765847628,-26347.86,0.000204,2]
[398508845,1765765847637,-250.0,0.000204,10]
[398508846,1765765847647,-411.41,0.000205,2]
[398508847,1765765847657,-250.0,0.000205,10]
[398508848,1765765847666,-1869.008667,0.00020548,2]
[398508849,1765765847676,-250.0,0.000206,10]
[398508850,1765765847685,-1384.04942311,0.0002061,2]
[398508851,1765765847694,-333.33333333,0.00020653,25]
[398508852,1765765847704,-360.36278941,0.00020667,25]
[398508853,1765765847713,-250.0,0.000207,10]
[398508854,1765765847722,-500.0,0.00020742,2]
[398508855,1765765847732,-238.19525787,0.00020767,3]
[398508856,1765765847741,-250.0,0.000208,10]
[398508857,1765765847750,-300.0,0.00020822,2]
[398508858,1765765847760,-960.0,0.00020837,2]
[398508859,1765765847770,-255.43873482,0.000209,2]
[398508860,1765765847780,-376.201368,0.000209,10]
[398508861,1765765847789,-158545.2519417,0.00021,2]
[398508862,1765765847799,-47172.7376319,0.00021,2]
[398508863,1765765847808,-276.26470737,0.00021,2]
[398508864,1765765847818,-50000.0,0.00021,2]
[398508865,1765765847828,-3000.0,0.00021,2]
[398508866,1765765847837,-150.0,0.00021,2]
[398508867,1765765847846,-8431.18961027,0.00021004,2]
[398508868,1765765847855,-3000.0,0.0002101,2]
[398508869,1765765847864,-3000.0,0.0002102,2]
[398508870,1765765847874,-3000.0,0.0002103,2]
[398508871,1765765847883,-3000.0,0.0002104,2]
[398508872,1765765847892,-3000.0,0.0002105,2]
[398508873,1765765847902,-3000.0,0.0002106,2]
[398508874,1765765847912,-3000.0,0.0002107,2]
[398508875,1765765847922,-3000.0,0.0002108,2]
[398508876,1765765847932,-3000.0,0.0002109,2]
[398508877,1765765847942,-600.0,0.00021096,2]
[398508878,1765765847952,-3000.0,0.000211,2]
[398508879,1765765847962,-3000.0,0.0002111,2]
[398508880,1765765847971,-3000.0,0.0002112,2]
[398508881,1765765847981,-3000.0,0.0002113,2]
[398508882,1765765847991,-3000.0,0.0002114,2]
[398508883,1765765848000,-3000.0,0.0002115,2]
[398508884,1765765848010,-1000.0,0.00021155,10]
[398508885,1765765848020,-244.0,0.00021155,10]
[398508886,1765765848030,-3000.0,0.0002116,2]
[398508887,1765765848040,-3000.0,0.0002117,2]
[398508888,1765765848343,-3000.0,0.0002118,2]
[398508889,1765765848352,-165.68905798,0.00021185,32]
[398508890,1765765848361,-800.0,0.00021185,2]
[398508891,1765765848370,-3000.0,0.0002119,2]
[398508892,1765765848380,-3000.0,0.000212,2]
[398508893,1765765848391,-333.33333333,0.00021204,32]
[398508894,1765765848401,-3000.0,0.0002121,2]
[398508895,1765765848411,-3000.0,0.0002122,2]
[398508896,1765765848420,-313.60403607,0.00021223,32]
[398508897,1765765848432,-360.36278941,0.00021223,32]
[398508898,1765765848441,-3000.0,0.0002123,2]
[398508899,1765765848451,-3000.0,0.0002124,2]
[398508900,1765765848460,-3000.0,0.0002125,2]
[398508901,1765765848470,-3000.0,0.0002126,2]
[398508902,1765765848479,-3000.0,0.0002127,2]
[398508903,1765765848488,-3000.0,0.0002128,2]
[398508904,1765765848497,-3000.0,0.0002129,2]
[398508905,1765765848507,-500.0,0.0002129,2]
[398508906,1765765848516,-3000.0,0.000213,2]
[398508907,1765765848525,-3000.0,0.0002131,2]
[398508908,1765765848535,-3000.0,0.0002132,2]
[398508909,1765765848544,-3000.0,0.0002133,2]
[398508910,1765765848553,-3000.0,0.0002134,2]
[398508911,1765765848563,-3000.0,0.0002135,2]
[398508912,1765765848572,-3000.0,0.0002136,2]
[398508913,1765765848581,-900.0,0.0002137,2]
[398508914,1765765848591,-3000.0,0.0002137,2]
[398508915,1765765848600,-3000.0,0.0002138,2]
[398508916,1765765848610,-1060.0,0.00021385,2]
[398508917,1765765848619,-1613.0,0.00021388,2]
[398508918,1765765848628,-3000.0,0.0002139,2]
[398508919,1765765848638,-415.0,0.000214,2]
[398508920,1765765848647,-3000.0,0.000214,2]
[398508921,1765765848657,-179.2524297,0.00021403,2]
[398508922,1765765848667,-3000.0,0.0002141,2]
[398508923,1765765848676,-3000.0,0.0002142,2]
[398508924,1765765848685,-5485.09875,0.0002143,2]
[398508925,1765765848694,-1035.87586414,0.000215,2]
[398508926,1765765848703,-12812.3208815,0.000215,2]
[398508927,1765765848713,-1115.67348662,0.000215,2]
[398508928,1765765848723,-471.51539888,0.0002152,2]
[398508929,1765765848733,-171.68931714,0.00021533,5]
[398508930,1765765848742,-1200.0,0.00021644,2]
[398508931,1765765848751,-26347.86,0.000217,2]
[398508932,1765765848760,-333.33333333,0.00021755,40]
[398508933,1765765848769,-360.36278941,0.00021778,40]
[398508934,1765765848779,-411.41,0.000218,2]
[398508935,1765765848789,-562.39,0.00021838,2]
[398508936,1765765848798,-151.0,0.00021918,2]
[398508937,1765765848807,-151.0,0.00021918,2]
[398508938,1765765848817,-151.0,0.00021918,2]
[398508939,1765765848826,-151.0,0.00021918,2]
[398508940,1765765848836,-151.0,0.00021918,2]
[398508941,1765765848845,-151.0,0.00021918,2]
[398508942,1765765848855,-151.0,0.00021918,2]
[398508943,1765765848864,-151.0,0.00021918,2]
[398508944,1765765848874,-151.0,0.00021918,2]
[398508945,1765765848883,-151.0,0.00021918,2]
[398508946,1765765848893,-151.0,0.00021918,2]
[398508947,1765765848902,-151.0,0.00021918,2]
[398508948,1765765848912,-151.0,0.00021918,2]
[398508949,1765765848921,-151.0,0.00021918,2]
[398508950,1765765848930,-151.0,0.00021918,2]
[398508951,1765765848940,-151.0,0.00021918,2]
[398508952,1765765848949,-273.344,0.00021918,2]
[398508953,1765765848959,-151.0,0.00021918,2]
[398508954,1765765848969,-151.0,0.00021918,2]
[398508955,1765765848978,-151.0,0.00021918,2]
[398508956,1765765848987,-151.0,0.00021918,2]
[398508957,1765765848997,-151.0,0.00021918,2]
[398508958,1765765849007,-151.0,0.00021918,2]
[398508959,1765765849016,-219.457724,0.00021918,2]
[398508960,1765765849026,-151.0,0.00021918,2]
[398508961,1765765849038,-151.0,0.00021918,2]
[398508962,1765765849048,-151.0,0.00021918,2]
[398508963,1765765849059,-269.816054,0.00021918,2]
[398508964,1765765849069,-151.0,0.00021918,2]
[398508965,1765765849078,-151.0,0.00021918,2]
[398508966,1765765849087,-151.0,0.00021918,2]
[398508967,1765765849097,-156.852799,0.00021918,2]
[398508968,1765765849106,-151.0,0.00021918,2]
[398508969,1765765849115,-151.0,0.00021918,2]
[398508970,1765765849124,-151.0,0.00021918,2]
[398508971,1765765849140,-151.0,0.00021918,2]
[398508972,1765765849149,-151.0,0.00021918,2]
[398508973,1765765849159,-151.0,0.00021918,2]
[398508974,1765765849168,-151.0,0.00021918,2]
[398508975,1765765849178,-151.0,0.00021918,2]
[398508976,1765765849187,-151.0,0.00021918,2]
[398508977,1765765849196,-267.945881,0.00021918,2]
[398508978,1765765849206,-151.0,0.00021918,2]
[398508979,1765765849215,-151.0,0.00021918,2]
[398508980,1765765849225,-151.0,0.00021918,2]
[398508981,1765765849234,-151.0,0.00021918,2]
[398508982,1765765849243,-151.0,0.00021918,2]
[398508983,1765765849252,-151.0,0.00021918,2]
[398508984,1765765849261,-151.0,0.00021918,2]
[398508985,1765765849270,-151.0,0.00021918,2]
[398508986,1765765849280,-151.0,0.00021918,2]
[398508987,1765765849289,-151.0,0.00021918,2]
[398508988,1765765849299,-151.0,0.00021918,2]
[398508989,1765765849308,-151.0,0.00021918,2]
[398508990,1765765849318,-265.568142,0.00021918,2]
[398508991,1765765849327,-151.0,0.00021918,2]
[398508992,1765765849337,-151.0,0.00021918,2]
[398508993,1765765849346,-151.0,0.00021918,2]
[398508994,1765765849355,-151.0,0.00021918,2]
[398508995,1765765849364,-151.0,0.00021918,2]
[398508996,1765765849374,-151.0,0.00021918,2]
[398508997,1765765849383,-151.0,0.00021918,2]
[398508998,1765765849397,-151.0,0.00021918,2]
[398508999,1765765849406,-176.776236,0.00021918,2]
[398509000,1765765849415,-151.0,0.00021918,2]
[398509001,1765765849425,-151.0,0.00021918,2]
[398509002,1765765849435,-151.0,0.00021918,2]
[398509003,1765765849444,-153.845317,0.00021918,2]
[398509004,1765765849453,-151.0,0.00021918,2]
[398509005,1765765849465,-151.0,0.00021918,2]
[398509006,1765765849474,-151.0,0.00021918,2]
[398509007,1765765849483,-151.0,0.00021918,2]
[398509008,1765765849493,-151.0,0.00021918,2]
[398509009,1765765849502,-151.0,0.00021918,2]
[398509010,1765765849512,-151.0,0.00021918,2]
[398509011,1765765849521,-175.138371,0.00021918,2]
[398509012,1765765849531,-151.0,0.00021918,2]
[398509013,1765765849540,-151.0,0.00021918,2]
[398509014,1765765849549,-151.0,0.00021918,2]
[398509015,1765765849558,-151.0,0.00021918,2]
[398509016,1765765849567,-151.0,0.00021918,2]
[398509017,1765765849576,-151.0,0.00021918,2]
[398509018,1765765849585,-151.0,0.00021918,2]
[398509019,1765765849594,-151.0,0.00021918,2]
[398509020,1765765849603,-151.0,0.00021918,2]
[398509021,1765765849611,-193.207713,0.00021918,2]
[398509022,1765765849620,-216.584759,0.00021918,2]
[398509023,1765765849630,-151.0,0.00021918,2]
[398509024,1765765849639,-151.0,0.00021918,2]
[398509025,1765765849648,-151.0,0.00021918,2]
[398509026,1765765849657,-151.0,0.00021918,2]
[398509027,1765765849666,-151.0,0.00021918,2]
[398509028,1765765849676,-151.0,0.00021918,2]
[398509030,1765765849686,-151.0,0.00021918,2]
[398509031,1765765849696,-264.974695,0.00021918,2]
[398509033,1765765849705,-152.650304,0.00021918,2]
[398509035,1765765849715,-151.0,0.00021918,2]
[398509036,1765765849725,-151.806982,0.00021918,2]
[398509038,1765765849734,-249.779576,0.00021918,2]
[398509040,1765765849743,-151.0,0.00021918,2]
[398509042,1765765849753,-181.082327,0.00021918,2]
[398509043,1765765849764,-151.0,0.00021918,2]
[398509044,1765765849774,-151.0,0.00021918,2]
[398509045,1765765849784,-151.0,0.00021918,2]
[398509046,1765765849793,-151.0,0.00021918,2]
[398509047,1765765849802,-151.0,0.00021918,2]
[398509048,1765765849811,-151.0,0.00021918,2]
[398509049,1765765849820,-151.0,0.00021918,2]
[398509050,1765765849830,-151.0,0.00021918,2]
[398509051,1765765849841,-151.0,0.00021918,2]
[398509052,1765765849851,-151.0,0.00021918,2]
[398509053,1765765849862,-151.0,0.00021918,2]
[398509054,1765765849873,-151.0,0.00021918,2]
[398509055,1765765849883,-151.0,0.00021918,2]
[398509056,1765765849892,-151.0,0.00021918,2]
[398509057,1765765849901,-151.0,0.00021918,2]
[398509058,1765765849911,-151.0,0.00021918,2]
[398509059,1765765849920,-151.0,0.00021918,2]
[398509060,1765765849930,-151.0,0.00021918,2]
[398509061,1765765849939,-160.611387,0.00021918,2]
[398509062,1765765849948,-156.868617,0.00021918,2]
[398509063,1765765849957,-151.0,0.00021918,2]
[398509064,1765765849966,-151.0,0.00021918,2]
[398509065,1765765849976,-151.0,0.00021918,2]
[398509066,1765765849985,-153.340093,0.00021918,2]
[398509067,1765765849994,-151.0,0.00021918,2]
[398509068,1765765850003,-151.0,0.00021918,2]
[398509069,1765765850012,-151.0,0.00021918,2]
[398509070,1765765850022,-151.0,0.00021918,2]
[398509071,1765765850031,-151.0,0.00021918,2]
[398509072,1765765850040,-151.0,0.00021918,2]
[398509073,1765765850050,-151.0,0.00021918,2]
[398509074,1765765850059,-151.0,0.00021918,2]
[398509075,1765765850067,-151.0,0.00021918,2]
[398509076,1765765850077,-151.0,0.00021918,2]
[398509077,1765765850086,-151.0,0.00021918,2]
[398509078,1765765850096,-155.823099,0.00021918,2]
[398509079,1765765850105,-160.976209,0.00021918,2]
[398509080,1765765850115,-287.715144,0.00021918,2]
[398509081,1765765850124,-151.0,0.00021918,2]
[398509082,1765765850133,-151.0,0.00021918,2]
[398509083,1765765850142,-151.0,0.00021918,2]
[398509084,1765765850153,-151.0,0.00021918,2]
[398509085,1765765850163,-151.0,0.00021918,2]
[398509086,1765765850172,-151.0,0.00021918,2]
[398509087,1765765850182,-151.0,0.00021918,2]
[398509088,1765765850192,-151.0,0.00021918,2]
[398509089,1765765850201,-151.0,0.00021918,2]
[398509090,1765765850210,-285.664865,0.00021918,2]
[398509091,1765765850219,-476.222899,0.00021918,2]
[398509092,1765765850229,-476.222899,0.00021918,2]
[398509093,1765765850238,-476.222899,0.00021918,2]
[398509094,1765765850247,-476.222899,0.00021918,2]
[398509095,1765765850256,-476.222899,0.00021918,2]
[398509096,1765765850266,-476.222899,0.00021918,2]
[398509097,1765765850275,-476.222899,0.00021918,2]
[398509098,1765765850290,-476.222899,0.00021918,2]
[398509099,1765765850303,-476.222899,0.00021918,2]
[398509100,1765765850313,-476.222899,0.00021918,2]
[398509101,1765765850323,-476.222899,0.00021918,2]
[398509102,1765765850332,-476.222899,0.00021918,2]
[398509103,1765765850342,-476.222899,0.00021918,2]
[398509104,1765765850352,-476.222899,0.00021918,2]
[398509105,1765765850361,-476.222899,0.00021918,2]
[398509106,1765765850371,-476.222899,0.00021918,2]
[398509107,1765765850380,-476.222899,0.00021918,2]
[398509108,1765765850392,-476.222899,0.00021918,2]